{"text_format":"1","workbook":"xlsx","n_sheets":1,"sheets":["Sheet1"],"not_rendered":{"charts":0,"images":0,"macros":1,"external_links":0,"defined_names":0,"comments":0,"pivot_tables":0},"unopened":[],"bounds":{"document_bytes":16777216,"sheet_cells":100000,"rows_first":2000,"rows_last":500,"rows_between":2000,"halvings":0,"cell_chars":16384,"cell_head_chars":4096},"cells_cut":0,"cells_raw":0,"read":"whole","date_system":"1900"}

{"sheet":"Sheet1","index":0,"n_rows":19,"n_cols":50,"rows_kept":19,"cut":false,"hidden":false,"merged":[[4,31,6,31],[18,10,18,11],[17,6,17,7],[3,2,3,3],[9,2,9,3]]}
[null,null,null,null,7,6,5,4,3,2,1,0,null,null,null,null,null,null,null,null,null,null,null,null,null,null,null,null,null,null,null,"全加算回路を８つ連結して計算",null,null,null,null,null,null,null,null,null,null,null,null,null,null,null,null,"(2)"]
[null,null,null,null,{"$f":"IF(E4=1,D3-E3,D3)","v":100},{"$f":"IF(F4=1,E2-F3,E2)","v":36},4,4,4,0,0,0,null,"A",1,null,null,null,null,{"$f":"O2","v":1},"A",null,null,null,null,null,null,{"$f":"V3","v":0},{"$f":"AB2","v":0},"C",null,null,"X S",null,null,null,null,null,null,null,null,null,null,null,null,null,null,{"$f":"AH2","v":0},{"$f":"AV2","v":0},"1の位"]
[null,null,null,100,{"$f":"2^E1","v":128},64,32,16,8,4,2,1,null,null,null,null,null,null,null,null,"N",{"$f":"IF(AND(T2=1,T4=1),1,0)","v":0},null,null,null,null,null,null,null,null,"(2)",null,"A"]
[null,null,"2進数化:",null,{"$f":"IF(D3>=E3,1,0)","v":0},{"$f":"IF(E2>=F3,1,0)","v":1},1,0,0,1,0,0,"(2)",null,null,null,null,null,null,{"$f":"O8","v":0},"D",null,null,"NOT",null,null,null,null,null,null,"(2)",null,"B C",null,"X S",null,null,null,null,null,null,null,null,null,null,null,null,{"$f":"AJ4","v":0},{"$f":"AV4","v":0},"2の位"]
[null,null,null,null,null,null,null,null,null,null,null,null,null,null,null,null,null,null,null,null,null,null,null,null,{"$f":"IF(NOT(V3=1),1,0)","v":1},null,null,null,null,null,null,null,null,null,"A"]
[null,null,null,"+",null,null,null,null,null,null,null,null,null,null,null,null,null,null,null,{"$f":"O2","v":1},"O",null,null,null,null,{"$f":"Y5","v":1},"A",null,null,null,null,null,null,null,"B C",null,"X S",null,null,null,null,null,null,null,null,null,null,{"$f":"AL6","v":0},{"$f":"AV6","v":0},"4の位"]
[null,null,null,null,7,6,5,4,3,2,1,0,null,null,null,null,null,null,null,null,null,{"$f":"IF(OR(T6=1,T8=1),1,0)","v":1},null,null,null,null,"N",{"$f":"IF(AND(Z6=1,Z8=1),1,0)","v":1},{"$f":"AB7","v":1},"S",null,null,null,null,null,null,"A"]
[null,null,null,null,{"$f":"IF(E10=1,D9-E9,D9)","v":50},{"$f":"IF(F10=1,E8-F9,E8)","v":50},18,2,2,2,0,0,null,"B",0,null,null,null,null,{"$f":"O8","v":0},"R",null,null,null,null,{"$f":"V7","v":1},"D",null,null,null,null,null,null,null,null,null,"B C",null,"X S",null,null,null,null,null,null,null,null,{"$f":"AN8","v":0},{"$f":"AV8","v":0},"8の位"]
[null,null,null,50,128,64,32,16,8,4,2,1,null,null,null,null,null,null,null,"半加算回路(HA)",null,null,null,null,null,null,null,null,null,null,null,null,null,null,null,null,null,null,"A"]
[null,null,"2進数化:",null,{"$f":"IF(D9>=E9,1,0)","v":0},{"$f":"IF(E8>=F9,1,0)","v":0},1,1,0,0,1,0,"(2)",null,null,null,null,null,null,null,null,null,null,null,null,null,null,null,null,null,null,null,null,null,null,null,null,null,"B C",null,"X S",null,null,null,null,null,null,{"$f":"AP10","v":0},{"$f":"AV10","v":0},"16の位"]
[null,null,null,null,null,null,null,null,null,null,null,null,null,null,null,null,null,null,null,null,null,null,null,null,null,null,null,null,null,null,null,null,null,null,null,null,null,null,null,null,"A"]
[null,null,null,"↓",null,null,null,null,null,null,null,null,null,"X",1,null,null,null,null,{"$f":"O12","v":1},"A S",1,null,null,null,null,null,null,{"$f":"V12","v":1},"S",null,null,null,null,null,null,null,null,null,null,"B C",null,"X S",null,null,null,null,{"$f":"AR12","v":0},{"$f":"AV12","v":0},"32の位"]
[null,null,null,null,128,64,32,16,8,4,2,1,null,null,null,null,null,null,null,null,null,null,null,null,null,null,null,null,null,null,null,null,null,null,null,null,null,null,null,null,null,null,"A"]
[null,null,null,{"$f":"SUMPRODUCT(E13:L13,E14:L14)","v":0},{"$f":"AW16","v":0},{"$f":"AW14","v":0},{"$f":"AW12","v":0},{"$f":"AW10","v":0},{"$f":"AW8","v":0},{"$f":"AW6","v":0},{"$f":"AW4","v":0},{"$f":"AW2","v":0},"(2)","A",0,null,{"$f":"O14","v":0},"A S",0,{"$f":"S14","v":0},"B C",0,{"$f":"V14","v":0},"O",null,null,null,null,null,null,null,null,null,null,null,null,null,null,null,null,null,null,"B C",null,"X S",null,null,{"$f":"AT14","v":0},{"$f":"AV14","v":0},"64の位"]
[null,null,null,null,null,null,null,null,null,null,null,null,null,null,null,null,null,null,null,null,"HA",null,null,null,{"$f":"IF(OR(W14=1,W16=1),1,0)","v":0},null,null,null,{"$f":"Y15","v":0},"C",null,null,null,null,null,null,null,null,null,null,null,null,null,null,"A"]
[null,null,null,null,null,null,null,null,null,null,null,null,null,"B",0,null,{"$f":"O16","v":0},"B C",0,null,null,null,{"$f":"S16","v":0},"R",null,null,null,null,null,null,null,null,null,null,null,null,null,null,null,null,null,null,null,null,"B C",null,"X S",null,{"$f":"AV16","v":0},"128の位"]
[null,null,null,null,null,null,null,null,null,null,null,null,null,null,null,null,null,"HA",null,null,null,null,null,null,null,null,null,null,null,null,null,null,null,null,null,null,null,null,null,null,null,null,null,null,null,null,"A"]
[null,null,null,null,null,null,8,null,"桁目計算中",null,null,null,null,null,null,null,null,null,null,"全加算回路",null,null,null,null,null,null,null,null,null,null,null,null,null,null,null,null,null,null,null,null,null,null,null,null,null,null,"B C",null,{"$f":"AV18","v":0}]
[null,null,null,null,null,null,"ゆっくり度",null,null,null,100]